[Event "ETCC Women 2013"]
[Site "Warsaw"]
[Date "2013.11.10"]
[Round "3"]
[White "Majdan-Gajewska, Joanna"]
[Black "Foisor, Cristina-Adela"]
[Result "1-0"]
[ECO "B40"]
[WhiteElo "2420"]
[BlackElo "2347"]
[PlyCount "181"]
[EventDate "2013.??.??"]
[EventCountry "POL"]
[WhiteTeam "Poland"]
[BlackTeam "Romania"]
[WhiteTeamCountry "POL"]
[BlackTeamCountry "ROU"]
[TimeControl "40/5400+30:1800+30"]

1. e4 {[%emt 0:00:00]} c5 {[%emt 0:00:00]} 2. Nf3 {[%emt 0:00:00]} e6 {[%emt 0:
00:00]} 3. d4 {[%emt 0:00:00]} cxd4 {[%emt 0:00:00]} 4. Nxd4 {[%emt 0:00:00]}
Nf6 {[%emt 0:00:00]} 5. Nc3 {[%emt 0:00:19]} Nc6 {[%emt 0:00:00]} 6. Ndb5 {
[%emt 0:00:49]} Bb4 {[%emt 0:00:03]} 7. a3 {[%emt 0:00:34]} Bxc3+ {[%emt 0:00:
06]} 8. Nxc3 {[%emt 0:00:02]} d5 {[%emt 0:00:11]} 9. exd5 {[%emt 0:00:04]} exd5
{[%emt 0:00:06]} 10. Bd3 {[%emt 0:00:03]} O-O {[%emt 0:00:08]} 11. O-O {[%emt
0:00:03]} d4 {[%emt 0:00:04]} 12. Ne2 {[%emt 0:00:15]} Bg4 {[%emt 0:00:06]} 13.
f3 {[%emt 0:00:04]} Bh5 {[%emt 0:00:06]} 14. Nf4 {[%emt 0:00:43]} Bg6 {[%emt 0:
00:06]} 15. Nxg6 {[%emt 0:00:07]} hxg6 {[%emt 0:00:06]} 16. f4 {[%emt 0:00:42]}
Ne7 {[%emt 0:05:07]} 17. Re1 {[%emt 0:04:29]} Rc8 {[%emt 0:04:05]} 18. Qf3 {
[%emt 0:04:08]} Rc7 {[%emt 0:02:16]} 19. Bd2 {[%emt 0:02:12]} Qd5 {[%emt 0:05:
45]} 20. Qf1 {[%emt 0:06:47]} Qh5 {[%emt 0:12:35]} 21. Re5 {[%emt 0:03:19]} Nf5
{[%emt 0:01:40]} 22. h3 {[%emt 0:02:49]} Qh4 {[%emt 0:06:43]} 23. g4 {[%emt 0:
15:54]} Qg3+ {[%emt 0:24:48]} 24. Qg2 {[%emt 0:01:13]} Qxg2+ {[%emt 0:00:25]}
25. Kxg2 {[%emt 0:00:03]} Ne7 {[%emt 0:02:47]} 26. Rae1 {[%emt 0:04:38]} Nc6 {
[%emt 0:00:35]} 27. R5e2 {[%emt 0:07:19]} Nd5 {[%emt 0:05:35]} 28. Kf3 {[%emt
0:01:37]} Kh7 {[%emt 0:05:12]} 29. h4 {[%emt 0:01:44]} Kg8 {[%emt 0:02:00]} 30.
g5 {[%emt 0:08:04]} a6 {[%emt 0:07:20]} 31. Re8 {[%emt 0:02:05]} Rc8 {[%emt 0:
01:27]} 32. Rxc8 {[%emt 0:04:55]} Rxc8 {[%emt 0:00:04]} 33. h5 {[%emt 0:04:30]}
gxh5 {[%emt 0:00:44]} 34. g6 {[%emt 0:00:26]} fxg6 {[%emt 0:06:09]} 35. Bxg6 {
[%emt 0:02:11]} Nf6 {[%emt 0:00:54]} 36. c3 {[%emt 0:04:23]} Rc7 {[%emt 0:05:
53]} 37. Bf5 {[%emt 0:02:22]} Kf8 {[%emt 0:01:01]} 38. Be6 {[%emt 0:02:58]} Re7
{[%emt 0:01:19]} 39. f5 {[%emt 0:00:10]} dxc3 {[%emt 0:01:31]} 40. Bxc3 {[%emt
0:00:00]} Ne8 {[%emt 0:00:00]} 41. Kf4 {[%emt 0:06:35]} Nc7 {[%emt 0:04:49]}
42. Bc4 {[%emt 0:04:39]} b5 {[%emt 0:08:03]} 43. Ba2 {[%emt 0:03:36]} Rxe1 {
[%emt 0:03:01]} 44. Bxe1 {[%emt 0:00:02]} a5 {[%emt 0:00:17]} 45. Bf2 {[%emt 0:
01:51]} Ke7 {[%emt 0:03:10]} 46. Kg5 {[%emt 0:01:18]} Kd7 {[%emt 0:02:54]} 47.
Kxh5 {[%emt 0:03:42]} Ne7 {[%emt 0:00:18]} 48. Kg5 {[%emt 0:00:29]} Ne8 {[%emt
0:02:07]} 49. Bb6 {[%emt 0:03:34]} a4 {[%emt 0:00:44]} 50. Ba5 {[%emt 0:01:56]}
Nf6 {[%emt 0:02:07]} 51. Bb4 {[%emt 0:04:13]} Ne4+ {[%emt 0:02:45]} 52. Kf4 {
[%emt 0:00:15]} Nf6 {[%emt 0:00:26]} 53. Bc5 {[%emt 0:02:49]} Nfd5+ {[%emt 0:
01:40]} 54. Kg5 {[%emt 0:02:20]} Nf6 {[%emt 0:00:08]} 55. Be6+ {[%emt 0:00:35]}
Ke8 {[%emt 0:00:06]} 56. Bd4 {[%emt 0:00:32]} Ne4+ {[%emt 0:00:14]} 57. Kf4 {
[%emt 0:00:16]} Nf6 {[%emt 0:00:04]} 58. Bxf6 {[%emt 0:02:28]} gxf6 {[%emt 0:
00:04]} 59. Ke4 {[%emt 0:01:43]} Kd8 {[%emt 0:01:47]} 60. Kd4 {[%emt 0:00:22]}
b4 {[%emt 0:01:35]} 61. axb4 {[%emt 0:00:15]} Nc6+ {[%emt 0:00:31]} 62. Kc5 {
[%emt 0:01:15]} Kc7 {[%emt 0:00:08]} 63. b5 {[%emt 0:00:53]} Ne5 {[%emt 0:00:
04]} 64. b6+ {[%emt 0:01:21]} Kb8 {[%emt 0:00:12]} 65. Bc4 {[%emt 0:01:10]} Ng4
{[%emt 0:01:12]} 66. Kb5 {[%emt 0:03:56]} Ne3 {[%emt 0:00:29]} 67. Be6 {[%emt
0:00:13]} Nd1 {[%emt 0:00:21]} 68. Kxa4 {[%emt 0:00:13]} Nxb2+ {[%emt 0:00:04]}
69. Kb5 {[%emt 0:00:08]} Nd1 {[%emt 0:00:31]} 70. Kc6 {[%emt 0:01:05]} Ne3 {
[%emt 0:00:05]} 71. Kc5 {[%emt 0:01:57]} Ng4 {[%emt 0:00:54]} 72. Bd5 {[%emt 0:
00:13]} Ne5 {[%emt 0:03:48]} 73. Kd6 {[%emt 0:02:30]} Nd7 {[%emt 0:00:09]} 74.
Kc6 {[%emt 0:02:47]} Ne5+ {[%emt 0:00:05]} 75. Kb5 {[%emt 0:00:05]} Ng4 {[%emt
0:00:23]} 76. Kc5 {[%emt 0:00:32]} Ne5 {[%emt 0:00:13]} 77. Be4 {[%emt 0:00:12]
} Nd7+ {[%emt 0:00:18]} 78. Kb5 {[%emt 0:01:14]} Ne5 {[%emt 0:00:07]} 79. Bc6 {
[%emt 0:00:04]} Ng4 {[%emt 0:00:44]} 80. Kc5 {[%emt 0:00:07]} Ne5 {[%emt 0:01:
44]} 81. Kd5 {[%emt 0:01:42]} Kc8 {[%emt 0:00:52]} 82. Bb5 {[%emt 0:00:05]} Kb7
{[%emt 0:00:51]} 83. Kc5 {[%emt 0:00:02]} Kb8 {[%emt 0:00:29]} 84. Ba6 {[%emt
0:00:23]} Nd7+ {[%emt 0:02:55]} 85. Kc6 {[%emt 0:00:04]} Ne5+ {[%emt 0:00:04]}
86. Kd6 {[%emt 0:00:21]} Ng4 {[%emt 0:01:17]} 87. Ke6 {[%emt 0:00:39]} Ne5 {
[%emt 0:00:41]} 88. Kxf6 Nd7+ {[%emt 0:00:30]} 89. Ke7 Nxb6 {[%emt 0:00:30]}
90. Kd6 Ka7 {[%emt 0:00:30]} 91. f6 1-0

[Event "ETCC Women 2013"]
[Site "Warsaw"]
[Date "2013.11.10"]
[Round "3"]
[White "Mammadova, Gulnar"]
[Black "Alexandrova, Olga"]
[Result "0-1"]
[ECO "B40"]
[WhiteElo "2354"]
[BlackElo "2427"]
[PlyCount "92"]
[EventDate "2013.??.??"]
[EventCountry "POL"]
[WhiteTeam "Azerbaijan"]
[BlackTeam "Spain"]
[WhiteTeamCountry "AZE"]
[BlackTeamCountry "ESP"]
[TimeControl "40/5400+30:1800+30"]

1. e4 {[%emt 0:00:00]} c5 {[%emt 0:00:00]} 2. Nf3 {[%emt 0:00:00]} e6 {[%emt 0:
00:00]} 3. b3 {[%emt 0:00:00]} b6 {[%emt 0:00:00]} 4. c4 {[%emt 0:00:38]} Bb7 {
[%emt 0:00:08]} 5. Nc3 {[%emt 0:00:05]} Nf6 {[%emt 0:01:07]} 6. e5 {[%emt 0:03:
59]} Ne4 {[%emt 0:00:14]} 7. Be2 {[%emt 0:07:00]} Be7 {[%emt 0:14:09]} 8. Qc2 {
[%emt 0:06:24]} Nxc3 {[%emt 0:03:19]} 9. dxc3 {[%emt 0:00:40]} Nc6 {[%emt 0:13:
39]} 10. Bd3 {[%emt 0:05:57]} Qc7 {[%emt 0:03:03]} 11. Qe2 {[%emt 0:00:15]} d6
{[%emt 0:07:24]} 12. exd6 {[%emt 0:02:34]} Bxd6 {[%emt 0:01:28]} 13. Bd2 {
[%emt 0:07:19]} Ne5 {[%emt 0:10:21]} 14. Nxe5 {[%emt 0:05:27]} Bxe5 {[%emt 0:
00:06]} 15. Be4 {[%emt 0:00:21]} Bxe4 {[%emt 0:02:35]} 16. Qxe4 {[%emt 0:00:04]
} Rd8 {[%emt 0:00:16]} 17. f4 {[%emt 0:00:52]} Bf6 {[%emt 0:10:40]} 18. O-O-O {
[%emt 0:03:13]} O-O {[%emt 0:00:15]} 19. g4 {[%emt 0:00:41]} Rd7 {[%emt 0:01:
43]} 20. g5 {[%emt 0:06:08]} Be7 {[%emt 0:00:07]} 21. h4 {[%emt 0:02:35]} Qb7 {
[%emt 0:02:30]} 22. Qe2 {[%emt 0:00:25]} Rfd8 {[%emt 0:00:57]} 23. Rh3 {[%emt
0:08:25]} b5 {[%emt 0:04:04]} 24. cxb5 {[%emt 0:12:14]} c4 {[%emt 0:00:21]} 25.
bxc4 {[%emt 0:07:36]} a6 {[%emt 0:02:42]} 26. g6 {[%emt 0:08:47]} axb5 {[%emt
0:03:34]} 27. gxf7+ {[%emt 0:00:41]} Kf8 {[%emt 0:01:10]} 28. c5 {[%emt 0:03:
53]} Qd5 {[%emt 0:02:57]} 29. c4 {[%emt 0:06:10]} Qd4 {[%emt 0:00:18]} 30. Rc3
{[%emt 0:01:28]} b4 {[%emt 0:01:14]} 31. Rb3 {[%emt 0:00:04]} Qa1+ {[%emt 0:01:
33]} 32. Rb1 {[%emt 0:00:31]} Qxa2 {[%emt 0:01:01]} 33. c6 {[%emt 0:00:32]} Rd4
{[%emt 0:02:46]} 34. Rxb4 {[%emt 0:00:54]} Qa3+ {[%emt 0:03:10]} 35. Rb2 {
[%emt 0:00:04]} Rb8 {[%emt 0:02:49]} 36. Bb4 {[%emt 0:00:20]} Rxd1+ {[%emt 0:
00:30]} 37. Kxd1 {[%emt 0:00:04]} Rxb4 {[%emt 0:00:27]} 38. Rxb4 {[%emt 0:00:
36]} Qxb4 {[%emt 0:00:11]} 39. Qe4 {[%emt 0:01:25]} Qd6+ {[%emt 0:00:34]} 40.
Ke2 {[%emt 0:00:00]} Kxf7 {[%emt 0:00:00]} 41. h5 {[%emt 0:02:08]} h6 {[%emt 0:
06:23]} 42. Qg6+ {[%emt 0:03:47]} Kf8 {[%emt 0:02:32]} 43. Qe4 {[%emt 0:00:28]}
Bd8 {[%emt 0:01:22]} 44. Kf3 {[%emt 0:02:48]} Bc7 {[%emt 0:01:47]} 45. Kg2 {
[%emt 0:02:55]} Qxf4 {[%emt 0:01:53]} 46. Qxe6 {[%emt 0:00:09]} Qg5+ {[%emt 0:
00:20]} 0-1

[Event "ETCC Women 2013"]
[Site "Warsaw"]
[Date "2013.11.10"]
[Round "3"]
[White "Melamed, Tatjana"]
[Black "Cemhan, Kardelen"]
[Result "1/2-1/2"]
[ECO "A34"]
[WhiteElo "2367"]
[BlackElo "1993"]
[PlyCount "81"]
[EventDate "2013.??.??"]
[EventCountry "POL"]
[WhiteTeam "Germany"]
[BlackTeam "Turkey"]
[WhiteTeamCountry "GER"]
[BlackTeamCountry "TUR"]
[TimeControl "40/5400+30:1800+30"]

1. c4 {[%emt 0:00:00]} c5 {[%emt 0:00:00]} 2. Nc3 {[%emt 0:00:00]} Nf6 {[%emt
0:00:00]} 3. g3 {[%emt 0:00:23]} d5 {[%emt 0:00:18]} 4. cxd5 {[%emt 0:00:18]}
Nxd5 {[%emt 0:00:03]} 5. Bg2 {[%emt 0:00:22]} Nc7 {[%emt 0:00:08]} 6. Nf3 {
[%emt 0:00:10]} Nc6 {[%emt 0:00:12]} 7. O-O {[%emt 0:00:21]} e5 {[%emt 0:00:17]
} 8. a3 {[%emt 0:00:31]} Be7 {[%emt 0:02:51]} 9. b4 {[%emt 0:02:34]} f6 {[%emt
0:11:41]} 10. bxc5 {[%emt 0:06:32]} Bxc5 {[%emt 0:00:12]} 11. Qc2 {[%emt 0:07:
36]} Be6 {[%emt 0:04:08]} 12. Rb1 {[%emt 0:02:10]} Rb8 {[%emt 0:04:49]} 13. Na4
{[%emt 0:04:50]} Bb6 {[%emt 0:04:13]} 14. Nxb6 {[%emt 0:02:28]} axb6 {[%emt 0:
00:02]} 15. Rxb6 {[%emt 0:06:03]} O-O {[%emt 0:01:31]} 16. d3 {[%emt 0:05:08]}
Qd7 {[%emt 0:04:07]} 17. Be3 {[%emt 0:07:43]} Nd5 {[%emt 0:03:22]} 18. Rbb1 {
[%emt 0:01:38]} Rfc8 {[%emt 0:04:16]} 19. Qb2 {[%emt 0:06:12]} b5 {[%emt 0:03:
33]} 20. Nd2 {[%emt 0:13:10]} b4 {[%emt 0:06:00]} 21. Ne4 {[%emt 0:02:00]} Nxe3
{[%emt 0:01:22]} 22. fxe3 {[%emt 0:00:18]} Qa7 {[%emt 0:00:14]} 23. axb4 {
[%emt 0:08:51]} Qxe3+ {[%emt 0:01:55]} 24. Kh1 {[%emt 0:00:06]} Nxb4 {[%emt 0:
03:52]} 25. Rfc1 {[%emt 0:03:32]} Nc6 {[%emt 0:02:20]} 26. Qd2 {[%emt 0:05:46]}
Qxd2 {[%emt 0:02:33]} 27. Nxd2 {[%emt 0:00:03]} Rxb1 {[%emt 0:00:50]} 28. Nxb1
{[%emt 0:00:53]} Nd4 {[%emt 0:01:12]} 29. Rxc8+ {[%emt 0:00:23]} Bxc8 {[%emt 0:
00:03]} 30. Nc3 {[%emt 0:00:12]} Bg4 {[%emt 0:01:05]} 31. Bf1 {[%emt 0:02:01]}
Kf7 {[%emt 0:06:13]} 32. Kg1 {[%emt 0:00:15]} Ke6 {[%emt 0:00:27]} 33. Kf2 {
[%emt 0:00:22]} Kd6 {[%emt 0:04:24]} 34. Bg2 {[%emt 0:00:50]} Bd7 {[%emt 0:02:
53]} 35. Ne4+ {[%emt 0:01:26]} Ke7 {[%emt 0:00:31]} 36. Nc3 {[%emt 0:03:03]}
Kd6 {[%emt 0:01:31]} 37. Ne4+ {[%emt 0:00:09]} Ke7 {[%emt 0:00:07]} 38. Nc3 {
[%emt 0:00:04]} Kd6 {[%emt 0:00:17]} 39. Ne4+ {[%emt 0:00:11]} Ke7 {[%emt 0:00:
15]} 40. Nc3 {[%emt 0:00:00]} Kd6 {[%emt 0:00:00]} 41. Ne4+ {[%emt 0:00:16]}
1/2-1/2

[Event "ETCC Women 2013"]
[Site "Warsaw"]
[Date "2013.11.10"]
[Round "3"]
[White "Messina, Roberta"]
[Black "Reppen, Ellisiv"]
[Result "0-1"]
[ECO "A37"]
[WhiteElo "2064"]
[BlackElo "2008"]
[PlyCount "128"]
[EventDate "2013.??.??"]
[EventCountry "POL"]
[WhiteTeam "Italy"]
[BlackTeam "Norway"]
[WhiteTeamCountry "ITA"]
[BlackTeamCountry "NOR"]
[TimeControl "40/5400+30:1800+30"]

1. Nf3 {[%emt 0:00:00]} c5 {[%emt 0:00:16]} 2. c4 {[%emt 0:00:12]} Nc6 {[%emt
0:00:37]} 3. g3 {[%emt 0:00:12]} g6 {[%emt 0:00:19]} 4. Bg2 {[%emt 0:00:12]}
Bg7 {[%emt 0:00:17]} 5. Nc3 {[%emt 0:00:29]} d6 {[%emt 0:00:24]} 6. O-O {[%emt
0:00:26]} Bf5 {[%emt 0:01:06]} 7. d3 {[%emt 0:01:43]} Qd7 {[%emt 0:01:01]} 8.
Rb1 {[%emt 0:05:02]} Bh3 {[%emt 0:02:09]} 9. Bd2 {[%emt 0:05:11]} Bxg2 {[%emt
0:01:06]} 10. Kxg2 {[%emt 0:00:05]} Nf6 {[%emt 0:02:03]} 11. a3 {[%emt 0:01:50]
} O-O {[%emt 0:03:05]} 12. b4 {[%emt 0:01:53]} b6 {[%emt 0:01:13]} 13. Qb3 {
[%emt 0:16:13]} Rab8 {[%emt 0:06:23]} 14. Nd5 {[%emt 0:04:07]} Nxd5 {[%emt 0:
10:42]} 15. cxd5 {[%emt 0:00:06]} Nd4 {[%emt 0:01:49]} 16. Nxd4 {[%emt 0:01:43]
} cxd4 {[%emt 0:00:38]} 17. b5 {[%emt 0:04:03]} Rfc8 {[%emt 0:09:33]} 18. Rfc1
{[%emt 0:02:13]} h5 {[%emt 0:06:40]} 19. Rc6 {[%emt 0:15:21]} Qg4 {[%emt 0:06:
32]} 20. f3 {[%emt 0:01:40]} Qf5 {[%emt 0:01:45]} 21. Rb2 {[%emt 0:13:50]} g5 {
[%emt 0:20:01]} 22. Rbc2 {[%emt 0:02:07]} g4 {[%emt 0:03:51]} 23. f4 {[%emt 0:
02:26]} Re8 {[%emt 0:01:16]} 24. Bb4 {[%emt 0:03:27]} h4 {[%emt 0:00:49]} 25.
Rc1 {[%emt 0:05:21]} Qh5 {[%emt 0:04:56]} 26. Rh1 {[%emt 0:02:46]} e5 {[%emt 0:
03:37]} 27. fxe5 {[%emt 0:09:12]} Rxe5 {[%emt 0:03:16]} 28. Qa2 {[%emt 0:00:47]
} Rbe8 {[%emt 0:01:06]} 29. Rc2 {[%emt 0:00:28]} h3+ {[%emt 0:01:24]} 30. Kf2 {
[%emt 0:00:22]} Rxd5 {[%emt 0:01:43]} 31. a4 {[%emt 0:00:31]} Bh6 {[%emt 0:01:
41]} 32. Ke1 {[%emt 0:00:37]} Be3 {[%emt 0:00:57]} 33. Rf1 {[%emt 0:00:29]} Rf5
{[%emt 0:00:24]} 34. Rh1 {[%emt 0:00:39]} Qg6 {[%emt 0:01:07]} 35. Rc6 {[%emt
0:00:31]} Rf6 {[%emt 0:02:17]} 36. Qd5 {[%emt 0:00:26]} Rfe6 {[%emt 0:01:06]}
37. Rxd6 {[%emt 0:00:38]} Rc8 {[%emt 0:00:33]} 38. Rd8+ {[%emt 0:00:21]} Rxd8 {
[%emt 0:00:23]} 39. Qxd8+ {[%emt 0:00:03]} Kh7 {[%emt 0:00:14]} 40. Qh4+ {
[%emt 0:00:00]} Kg7 {[%emt 0:00:00]} 41. Qd8 {[%emt 0:06:34]} Rf6 {[%emt 0:14:
23]} 42. Be7 {[%emt 0:09:26]} Rf5 {[%emt 0:03:29]} 43. Bd6 {[%emt 0:03:36]} Qe6
{[%emt 0:02:48]} 44. Bf8+ {[%emt 0:11:14]} Kg6 {[%emt 0:02:09]} 45. Qd6 {[%emt
0:00:46]} Qxd6 {[%emt 0:01:03]} 46. Bxd6 {[%emt 0:00:04]} Rd5 {[%emt 0:01:11]}
47. Bb4 {[%emt 0:00:14]} Rd7 {[%emt 0:00:31]} 48. Kd1 {[%emt 0:01:07]} a6 {
[%emt 0:02:11]} 49. bxa6 {[%emt 0:01:15]} Ra7 {[%emt 0:00:14]} 50. Kc2 {[%emt
0:00:08]} Rxa6 {[%emt 0:00:17]} 51. Kb3 {[%emt 0:00:07]} Ra8 {[%emt 0:00:52]}
52. Rd1 {[%emt 0:01:27]} Rc8 {[%emt 0:00:33]} 53. Be1 {[%emt 0:00:55]} Rc6 {
[%emt 0:00:44]} 54. Bb4 {[%emt 0:00:26]} Rf6 {[%emt 0:00:55]} 55. Be1 {[%emt 0:
01:07]} Rf1 {[%emt 0:00:36]} 56. Kc2 {[%emt 0:00:16]} Bg1 {[%emt 0:04:39]} 57.
Rb1 {[%emt 0:00:42]} f6 {[%emt 0:00:51]} 58. e3 {[%emt 0:01:00]} Bxe3 {[%emt 0:
00:52]} 59. Kd1 {[%emt 0:00:39]} Rh1 {[%emt 0:01:26]} 60. Rb2 {[%emt 0:00:19]}
Bg1 {[%emt 0:00:24]} 61. Rxb6 {[%emt 0:00:48]} Bxh2 {[%emt 0:00:32]} 62. a5 {
[%emt 0:00:22]} Bxg3 {[%emt 0:00:13]} 63. Re6 {[%emt 0:00:09]} Rxe1+ {[%emt 0:
00:36]} 64. Rxe1 {[%emt 0:00:09]} Bxe1 {[%emt 0:00:06]} 0-1

[Event "ETCC Women 2013"]
[Site "Warsaw"]
[Date "2013.11.10"]
[Round "3"]
[White "Nazarova, Anastasia"]
[Black "Berke, Ana"]
[Result "1-0"]
[ECO "B50"]
[WhiteElo "1727"]
[BlackElo "2139"]
[PlyCount "97"]
[EventDate "2013.??.??"]
[EventCountry "POL"]
[WhiteTeam "Finland"]
[BlackTeam "Croatia"]
[WhiteTeamCountry "FIN"]
[BlackTeamCountry "CRO"]
[TimeControl "40/5400+30:1800+30"]

1. e4 {[%emt 0:00:00]} c5 {[%emt 0:00:00]} 2. Nf3 {[%emt 0:00:00]} d6 {[%emt 0:
00:14]} 3. Bc4 {[%emt 0:00:00]} Nf6 {[%emt 0:02:03]} 4. e5 {[%emt 0:00:00]}
dxe5 {[%emt 0:01:38]} 5. Nxe5 {[%emt 0:00:00]} e6 {[%emt 0:00:53]} 6. Qe2 {
[%emt 0:00:00]} Be7 {[%emt 0:01:20]} 7. O-O {[%emt 0:00:11]} O-O {[%emt 0:02:
01]} 8. b3 {[%emt 0:00:08]} Qc7 {[%emt 0:08:54]} 9. Bb2 {[%emt 0:00:15]} Nc6 {
[%emt 0:01:22]} 10. f4 {[%emt 0:00:24]} Nd4 {[%emt 0:01:53]} 11. Bxd4 {[%emt 0:
00:55]} cxd4 {[%emt 0:00:08]} 12. Rf3 {[%emt 0:03:31]} Bd7 {[%emt 0:08:07]} 13.
a4 {[%emt 0:02:39]} Bc6 {[%emt 0:03:27]} 14. Rh3 {[%emt 0:05:23]} Be4 {[%emt 0:
07:06]} 15. g4 {[%emt 0:24:17]} d3 {[%emt 0:10:16]} 16. Bxd3 {[%emt 0:13:56]}
Bc5+ {[%emt 0:06:52]} 17. Kf1 {[%emt 0:00:54]} Qd6 {[%emt 0:11:27]} 18. c3 {
[%emt 0:03:27]} Qd5 {[%emt 0:06:09]} 19. Bc4 {[%emt 0:02:32]} Qd6 {[%emt 0:06:
58]} 20. d4 {[%emt 0:04:03]} Bb6 {[%emt 0:00:39]} 21. Nd2 {[%emt 0:00:40]} Bg6
{[%emt 0:01:18]} 22. Qf3 {[%emt 0:05:09]} Nd7 {[%emt 0:04:02]} 23. Re1 {[%emt
0:07:53]} Rae8 {[%emt 0:05:40]} 24. Bb5 {[%emt 0:00:30]} Nxe5 {[%emt 0:01:53]}
25. fxe5 {[%emt 0:00:06]} Qe7 {[%emt 0:01:48]} 26. Bxe8 {[%emt 0:00:13]} Qxe8 {
[%emt 0:00:22]} 27. Ke2 {[%emt 0:01:48]} f6 {[%emt 0:00:34]} 28. Rf1 {[%emt 0:
01:39]} Bc2 {[%emt 0:01:46]} 29. g5 {[%emt 0:04:42]} f5 {[%emt 0:00:15]} 30.
Rc1 {[%emt 0:01:07]} Be4 {[%emt 0:04:37]} 31. Nxe4 {[%emt 0:00:01]} fxe4 {
[%emt 0:00:11]} 32. Qxe4 {[%emt 0:00:08]} g6 {[%emt 0:00:56]} 33. Qxb7 Rf7 {
[%emt 0:00:10]} 34. Qg2 {[%emt 0:00:30]} Qc8 {[%emt 0:00:50]} 35. Rd3 {[%emt 0:
01:50]} Rd7 {[%emt 0:00:28]} 36. Rf1 {[%emt 0:01:10]} Ba5 {[%emt 0:00:57]} 37.
Qf3 {[%emt 0:01:39]} Qd8 {[%emt 0:00:34]} 38. Qf6 {[%emt 0:00:32]} Qe8 {[%emt
0:00:27]} 39. Rdf3 {[%emt 0:00:28]} Bd8 {[%emt 0:00:40]} 40. Qf8+ {[%emt 0:00:
00]} Qxf8 {[%emt 0:00:00]} 41. Rxf8+ {[%emt 0:00:18]} Kg7 {[%emt 0:00:10]} 42.
h4 {[%emt 0:00:28]} Ba5 {[%emt 0:01:01]} 43. b4 {[%emt 0:00:50]} Bd8 {[%emt 0:
00:28]} 44. a5 {[%emt 0:00:42]} h6 {[%emt 0:01:11]} 45. gxh6+ {[%emt 0:00:29]}
Kxh6 {[%emt 0:00:10]} 46. Rh8+ {[%emt 0:00:17]} Kg7 {[%emt 0:00:13]} 47. Rff8 {
[%emt 0:00:10]} Bxh4 {[%emt 0:01:00]} 48. Rfg8+ {[%emt 0:00:09]} Kf7 {[%emt 0:
00:13]} 49. Rh7+ {[%emt 0:00:34]} 1-0

[Event "ETCC Women 2013"]
[Site "Warsaw"]
[Date "2013.11.10"]
[Round "3"]
[White "Newrkla, Katharina"]
[Black "Kosteniuk, Alexandra"]
[Result "0-1"]
[ECO "B14"]
[WhiteElo "2173"]
[BlackElo "2510"]
[PlyCount "66"]
[EventDate "2013.??.??"]
[EventCountry "POL"]
[WhiteTeam "Austria"]
[BlackTeam "Russia"]
[WhiteTeamCountry "AUT"]
[BlackTeamCountry "RUS"]
[TimeControl "40/5400+30:1800+30"]

1. e4 c6 2. d4 d5 3. exd5 cxd5 4. c4 Nf6 5. Nc3 e6 6. Nf3 Bb4 7. cxd5 Nxd5 8.
Qc2 Qc7 9. Bd2 Nxc3 10. bxc3 Bd6 11. Bd3 b6 12. Be4 Bb7 13. O-O Nd7 14. c4 Rc8
15. a4 Ba6 16. Rfc1 Bxc4 17. Qb2 Qb8 18. d5 O-O 19. Bc3 f6 20. Qb1 f5 21. dxe6
fxe4 22. exd7 exf3 23. dxc8=Q Bxh2+ 24. Kh1 fxg2+ 25. Kxg2 Bd5+ 26. Kf1 Qxc8
27. Bd4 Qh3+ 28. Ke1 Bf4 29. Rc3 Re8+ 30. Be3 Be5 31. Qc1 Bf3 32. Rd3 Bxa1 33.
Qc4+ Kh8 0-1